[Event "Titled Tuesday Blitz May 2 Early 2023"]
[White "Karamsetty, Jeevan"]
[Black "Siva Mahadevan"]
[WhiteFideId "2025337"]
[BlackFideId "25043153"]
[WhiteElo "2111"]
[BlackElo "2249"]
[Result "1-0"]
[Round "03"]
[TimeControl "180+2"]
[Date "2023.05.02"]
[WhiteClock "0:00:06"]
[BlackClock "0:00:16"]

1. e4 {[%clk 0:03:00]}  c5 {[%clk 0:02:59]} 2. Nc3 {[%clk 0:03:01]}  Nc6 {[%clk 0:02:58]} 3. Bb5 {[%clk 0:03:00]}  Nd4 {[%clk 0:02:59]} 4. Bc4 {[%clk 0:03:01]}  e6 {[%clk 0:02:59]} 5. Nge2 {[%clk 0:03:02]}  Nf6 {[%clk 0:02:59]} 6. O-O {[%clk 0:03:00]}  d5 {[%clk 0:02:31]} 7. exd5 {[%clk 0:02:59]}  exd5 {[%clk 0:02:32]} 8. Nxd5 {[%clk 0:02:58]}  Nxd5 {[%clk 0:02:23]} 9. Nxd4 {[%clk 0:02:58]}  Nb6 {[%clk 0:02:20]} 10. Bb5+ {[%clk 0:02:46]}  Bd7 {[%clk 0:02:20]} 11. Re1+ {[%clk 0:02:46]}  Be7 {[%clk 0:02:20]} 12. Nf5 {[%clk 0:02:44]}  Bxb5 {[%clk 0:02:17]} 13. Nxe7 {[%clk 0:02:23]}  Kf8 {[%clk 0:02:08]} 14. d3 {[%clk 0:02:22]}  Qd7 {[%clk 0:02:05]} 15. c4 {[%clk 0:02:09]}  Bc6 {[%clk 0:01:58]} 16. Nxc6 {[%clk 0:01:41]}  Qxc6 {[%clk 0:01:59]} 17. Be3 {[%clk 0:01:30]}  Rd8 {[%clk 0:01:56]} 18. Qh5 {[%clk 0:01:27]}  Nd7 {[%clk 0:01:52]} 19. Bg5 {[%clk 0:01:20]}  f6 {[%clk 0:01:49]} 20. Bf4 {[%clk 0:01:15]}  g6 {[%clk 0:01:39]} 21. Qe2 {[%clk 0:01:11]}  Kg8 {[%clk 0:01:29]} 22. Qe7 {[%clk 0:01:08]}  Rf8 {[%clk 0:01:30]} 23. Re6 {[%clk 0:00:50]}  Qc8 {[%clk 0:01:18]} 24. Bh6 {[%clk 0:00:46]}  Rf7 {[%clk 0:01:17]} 25. Qd6 {[%clk 0:00:41]}  Nf8 {[%clk 0:01:14]} 26. Rxf6 {[%clk 0:00:37]}  Qe8 {[%clk 0:01:08]} 27. Rxf7 {[%clk 0:00:33]}  Kxf7 {[%clk 0:01:09]} 28. Qxc5 {[%clk 0:00:28]}  Ne6 {[%clk 0:01:08]} 29. Qxa7 {[%clk 0:00:28]}  Qd7 {[%clk 0:01:07]} 30. Qe3 {[%clk 0:00:27]}  Rd8 {[%clk 0:01:07]} 31. Re1 {[%clk 0:00:26]}  Nd4 {[%clk 0:01:05]} 32. Qf4+ {[%clk 0:00:25]}  Kg8 {[%clk 0:01:06]} 33. Qf6 {[%clk 0:00:21]}  Nf5 {[%clk 0:01:06]} 34. Bg5 {[%clk 0:00:20]}  Re8 {[%clk 0:01:04]} 35. Rxe8+ {[%clk 0:00:18]}  Qxe8 {[%clk 0:01:04]} 36. g3 {[%clk 0:00:19]}  Qe1+ {[%clk 0:01:01]} 37. Kg2 {[%clk 0:00:19]}  Qe2 {[%clk 0:00:58]} 38. Qd8+ {[%clk 0:00:18]}  Kf7 {[%clk 0:00:59]} 39. Qd7+ {[%clk 0:00:19]}  Kf8 {[%clk 0:00:59]} 40. Qd8+ {[%clk 0:00:13]}  Kf7 {[%clk 0:00:59]} 41. Qd5+ {[%clk 0:00:13]}  Kf8 {[%clk 0:00:59]} 42. h4 {[%clk 0:00:13]}  h6 {[%clk 0:00:57]} 43. Bf4 {[%clk 0:00:12]}  Qxb2 {[%clk 0:00:57]} 44. Bd6+ {[%clk 0:00:10]}  Ke8 {[%clk 0:00:56]} 45. Qe6+ {[%clk 0:00:10]}  Kd8 {[%clk 0:00:56]} 46. Qxg6 {[%clk 0:00:08]}  Ne3+ {[%clk 0:00:55]} 47. Kf3 {[%clk 0:00:09]}  Nd1 {[%clk 0:00:46]} 48. Bc5 {[%clk 0:00:07]}  Qe5 {[%clk 0:00:17]} 49. Qd6+ {[%clk 0:00:07]}  Qxd6 {[%clk 0:00:18]} 50. Bxd6 {[%clk 0:00:08]}  Nc3 {[%clk 0:00:18]} 51. a3 {[%clk 0:00:08]}  Kd7 {[%clk 0:00:19]} 52. Bb4 {[%clk 0:00:06]}  Na4 {[%clk 0:00:17]} 53. Kg4 {[%clk 0:00:06]}  Nb2 {[%clk 0:00:17]} 54. Kh5 {[%clk 0:00:06]}  Nxd3 {[%clk 0:00:17]} 55. f4 {[%clk 0:00:07]}  Nb2 {[%clk 0:00:15]} 56. c5 {[%clk 0:00:07]}  Ke6 {[%clk 0:00:14]} 57. Kxh6 {[%clk 0:00:07]}  Kf5 {[%clk 0:00:15]} 58. h5 {[%clk 0:00:05]}  Nc4 {[%clk 0:00:15]} 59. Kg7 {[%clk 0:00:05]}  b6 {[%clk 0:00:15]} 60. cxb6 {[%clk 0:00:05]}  Nxb6 {[%clk 0:00:16]} 61. h6 {[%clk 0:00:05]}  Nd5 {[%clk 0:00:16]} 62. h7 {[%clk 0:00:06]}  Nf6 {[%clk 0:00:16]} 63. h8=Q {[%clk 0:00:06]} 1-0


[Site "https://www.chess.com"]

[Event "Titled Tuesday Blitz May 2 Early 2023"]
[White "Livaic, Leon"]
[Black "Xie, Bryan"]
[WhiteFideId "14531534"]
[BlackFideId "30941296"]
[WhiteElo "2509"]
[BlackElo "2033"]
[Result "1-0"]
[Round "03"]
[TimeControl "180+2"]
[Date "2023.05.02"]
[WhiteClock "0:00:47"]
[BlackClock "0:00:02"]

1. d4 {[%clk 0:02:59]}  d5 {[%clk 0:02:59]} 2. c4 {[%clk 0:02:59]}  e6 {[%clk 0:02:59]} 3. Nf3 {[%clk 0:02:59]}  dxc4 {[%clk 0:02:59]} 4. e3 {[%clk 0:02:59]}  Nf6 {[%clk 0:03:00]} 5. Bxc4 {[%clk 0:02:59]}  c5 {[%clk 0:03:00]} 6. O-O {[%clk 0:03:00]}  a6 {[%clk 0:03:01]} 7. b3 {[%clk 0:03:00]}  b5 {[%clk 0:03:00]} 8. Be2 {[%clk 0:03:00]}  Bb7 {[%clk 0:03:01]} 9. a4 {[%clk 0:03:00]}  b4 {[%clk 0:02:51]} 10. Bb2 {[%clk 0:03:00]}  Nbd7 {[%clk 0:02:48]} 11. Nbd2 {[%clk 0:03:00]}  Be7 {[%clk 0:02:48]} 12. Rc1 {[%clk 0:03:00]}  Rc8 {[%clk 0:02:46]} 13. Ne5 {[%clk 0:02:56]}  O-O {[%clk 0:02:33]} 14. Bf3 {[%clk 0:02:56]}  Qb6 {[%clk 0:02:08]} 15. Ndc4 {[%clk 0:02:53]}  Qa7 {[%clk 0:02:07]} 16. Nxd7 {[%clk 0:02:44]}  Nxd7 {[%clk 0:02:06]} 17. d5 {[%clk 0:02:38]}  exd5 {[%clk 0:01:56]} 18. Bxd5 {[%clk 0:02:38]}  Rcd8 {[%clk 0:01:46]} 19. Bxb7 {[%clk 0:02:01]}  Qxb7 {[%clk 0:01:47]} 20. Qh5 {[%clk 0:01:58]}  Nf6 {[%clk 0:01:03]} 21. Bxf6 {[%clk 0:01:57]}  Bxf6 {[%clk 0:01:02]} 22. Qxc5 {[%clk 0:01:57]}  Bc3 {[%clk 0:00:56]} 23. Rfd1 {[%clk 0:01:55]}  Qb8 {[%clk 0:00:41]} 24. Nd6 {[%clk 0:01:45]}  Rd7 {[%clk 0:00:24]} 25. Ne4 {[%clk 0:01:39]}  Rc8 {[%clk 0:00:15]} 26. Qf5 {[%clk 0:01:27]}  Rxd1+ {[%clk 0:00:15]} 27. Rxd1 {[%clk 0:01:28]}  Rd8 {[%clk 0:00:13]} 28. Rd7 {[%clk 0:01:17]}  Rxd7 {[%clk 0:00:10]} 29. Qxd7 {[%clk 0:01:18]}  Be5 {[%clk 0:00:06]} 30. g3 {[%clk 0:01:15]}  h6 {[%clk 0:00:03]} 31. Qc6 {[%clk 0:01:11]}  a5 {[%clk 0:00:01]} 32. Qd5 {[%clk 0:01:09]}  Bc7 {[%clk 0:00:01]} 33. Nc5 {[%clk 0:01:09]}  Qe8 {[%clk 0:00:01]} 34. Kg2 {[%clk 0:00:57]}  Bb6 {[%clk 0:00:01]} 35. Nd3 {[%clk 0:00:56]}  Bxe3 {[%clk 0:00:01]} 36. fxe3 {[%clk 0:00:46]}  Qxe3 {[%clk 0:00:02]} 37. Qa8+ {[%clk 0:00:46]}  Kh7 {[%clk 0:00:02]} 38. Qf3 {[%clk 0:00:47]}  Qd2+ {[%clk 0:00:02]} 39. Nf2 {[%clk 0:00:47]} 1-0


[Site "https://www.chess.com"]

[Event "Titled Tuesday Blitz May 2 Early 2023"]
[White "Deac, Bogdan-Daniel"]
[Black "Suder, Jakub"]
[WhiteFideId "1226380"]
[BlackFideId "1195310"]
[WhiteElo "2649"]
[BlackElo "2287"]
[Result "1-0"]
[Round "03"]
[TimeControl "180+2"]
[Date "2023.05.02"]
[WhiteClock "0:00:04"]
[BlackClock "0:00:03"]

1. b3 {[%clk 0:03:00]}  Nf6 {[%clk 0:02:48]} 2. Bb2 {[%clk 0:03:00]}  e6 {[%clk 0:02:38]} 3. Nf3 {[%clk 0:03:00]}  d5 {[%clk 0:02:38]} 4. c4 {[%clk 0:03:00]}  Be7 {[%clk 0:02:38]} 5. g3 {[%clk 0:03:00]}  O-O {[%clk 0:02:38]} 6. Bg2 {[%clk 0:03:01]}  c5 {[%clk 0:02:36]} 7. cxd5 {[%clk 0:03:00]}  Nxd5 {[%clk 0:02:35]} 8. O-O {[%clk 0:03:00]}  b6 {[%clk 0:02:36]} 9. d4 {[%clk 0:03:00]}  Bb7 {[%clk 0:02:33]} 10. dxc5 {[%clk 0:03:00]}  Bxc5 {[%clk 0:02:33]} 11. Nbd2 {[%clk 0:03:00]}  Nd7 {[%clk 0:02:33]} 12. a3 {[%clk 0:03:00]}  Rc8 {[%clk 0:02:31]} 13. Rc1 {[%clk 0:02:56]}  Be7 {[%clk 0:02:29]} 14. Nc4 {[%clk 0:02:56]}  Bf6 {[%clk 0:02:26]} 15. Qd2 {[%clk 0:02:46]}  Nc5 {[%clk 0:02:19]} 16. Bxf6 {[%clk 0:02:46]}  Qxf6 {[%clk 0:02:17]} 17. Qc2 {[%clk 0:02:10]}  Qe7 {[%clk 0:02:06]} 18. b4 {[%clk 0:02:00]}  Nd7 {[%clk 0:02:02]} 19. Qb2 {[%clk 0:02:00]}  Ba6 {[%clk 0:01:54]} 20. Nfd2 {[%clk 0:01:38]}  Qf6 {[%clk 0:01:43]} 21. Qb3 {[%clk 0:00:56]}  Bxc4 {[%clk 0:01:28]} 22. Nxc4 {[%clk 0:00:54]}  Qe7 {[%clk 0:01:20]} 23. Rfd1 {[%clk 0:00:45]}  N7f6 {[%clk 0:01:19]} 24. e4 {[%clk 0:00:44]}  Nc7 {[%clk 0:01:18]} 25. Nd6 {[%clk 0:00:38]}  Rcd8 {[%clk 0:01:18]} 26. e5 {[%clk 0:00:38]}  Nfd5 {[%clk 0:01:18]} 27. f4 {[%clk 0:00:33]}  Kh8 {[%clk 0:01:12]} 28. h4 {[%clk 0:00:27]}  f6 {[%clk 0:01:11]} 29. Rf1 {[%clk 0:00:20]}  fxe5 {[%clk 0:01:11]} 30. fxe5 {[%clk 0:00:21]}  Rxf1+ {[%clk 0:01:11]} 31. Rxf1 {[%clk 0:00:21]}  Rf8 {[%clk 0:01:12]} 32. Rf3 {[%clk 0:00:20]}  h6 {[%clk 0:01:09]} 33. Bh3 {[%clk 0:00:15]}  Kg8 {[%clk 0:01:00]} 34. Qd3 {[%clk 0:00:12]}  Rxf3 {[%clk 0:01:00]} 35. Qxf3 {[%clk 0:00:13]}  Ne8 {[%clk 0:00:50]} 36. Ne4 {[%clk 0:00:08]}  Qf7 {[%clk 0:00:42]} 37. Qd3 {[%clk 0:00:08]}  Nec7 {[%clk 0:00:38]} 38. Bg4 {[%clk 0:00:04]}  Qd7 {[%clk 0:00:25]} 39. Nd6 {[%clk 0:00:03]}  Qc6 {[%clk 0:00:19]} 40. Bh5 {[%clk 0:00:02]}  Qc1+ {[%clk 0:00:19]} 41. Kh2 {[%clk 0:00:03]}  Qe1 {[%clk 0:00:16]} 42. Qf3 {[%clk 0:00:02]}  Qxe5 {[%clk 0:00:10]} 43. Qf7+ {[%clk 0:00:02]}  Kh8 {[%clk 0:00:09]} 44. Ne8 {[%clk 0:00:02]}  Qb2+ {[%clk 0:00:04]} 45. Kh3 {[%clk 0:00:03]}  Nf4+ {[%clk 0:00:04]} 46. gxf4 {[%clk 0:00:02]}  Qc3+ {[%clk 0:00:04]} 47. Kg2 {[%clk 0:00:03]}  Qd2+ {[%clk 0:00:04]} 48. Kg3 {[%clk 0:00:03]}  Qe3+ {[%clk 0:00:04]} 49. Bf3 {[%clk 0:00:02]}  Qg1+ {[%clk 0:00:05]} 50. Kh3 {[%clk 0:00:02]}  Qf1+ {[%clk 0:00:05]} 51. Bg2 {[%clk 0:00:03]}  Qd3+ {[%clk 0:00:05]} 52. Kh2 {[%clk 0:00:03]}  Nxe8 {[%clk 0:00:02]} 53. Qxe8+ {[%clk 0:00:04]}  Kh7 {[%clk 0:00:03]} 54. Qxe6 {[%clk 0:00:04]} 1-0


[Site "https://www.chess.com"]

[Event "Titled Tuesday Blitz May 2 Early 2023"]
[White "Skliarov, Viktor"]
[Black "Dardha, Daniel"]
[WhiteFideId "14106736"]
[BlackFideId "240990"]
[WhiteElo "2317"]
[BlackElo "2581"]
[Result "0-1"]
[Round "03"]
[TimeControl "180+2"]
[Date "2023.05.02"]
[WhiteClock "0:00:11"]
[BlackClock "0:02:03"]

1. e4 {[%clk 0:03:00]}  e6 {[%clk 0:02:58]} 2. d4 {[%clk 0:03:00]}  c5 {[%clk 0:02:58]} 3. d5 {[%clk 0:03:00]}  Nf6 {[%clk 0:02:58]} 4. Nc3 {[%clk 0:02:58]}  d6 {[%clk 0:02:58]} 5. Bb5+ {[%clk 0:02:33]}  Nbd7 {[%clk 0:02:57]} 6. dxe6 {[%clk 0:02:30]}  fxe6 {[%clk 0:02:58]} 7. e5 {[%clk 0:02:30]}  dxe5 {[%clk 0:02:56]} 8. Nf3 {[%clk 0:02:29]}  a6 {[%clk 0:02:57]} 9. Bxd7+ {[%clk 0:02:07]}  Qxd7 {[%clk 0:02:58]} 10. Qe2 {[%clk 0:01:49]}  Bd6 {[%clk 0:02:57]} 11. O-O {[%clk 0:01:40]}  O-O {[%clk 0:02:53]} 12. Nxe5 {[%clk 0:01:38]}  Qc7 {[%clk 0:02:52]} 13. Bf4 {[%clk 0:01:31]}  Nd5 {[%clk 0:02:46]} 14. Bg3 {[%clk 0:01:17]}  b5 {[%clk 0:02:46]} 15. Rfe1 {[%clk 0:01:08]}  Bb7 {[%clk 0:02:45]} 16. Qg4 {[%clk 0:01:08]}  Rae8 {[%clk 0:02:44]} 17. Rad1 {[%clk 0:01:05]}  b4 {[%clk 0:02:41]} 18. Nb1 {[%clk 0:00:56]}  Rf5 {[%clk 0:02:32]} 19. Nc4 {[%clk 0:00:43]}  Bf4 {[%clk 0:02:28]} 20. Nbd2 {[%clk 0:00:37]}  Nf6 {[%clk 0:02:25]} 21. Qh4 {[%clk 0:00:30]}  e5 {[%clk 0:02:13]} 22. Bxf4 {[%clk 0:00:22]}  Rxf4 {[%clk 0:02:13]} 23. Qh3 {[%clk 0:00:20]}  Rg4 {[%clk 0:02:08]} 24. f3 {[%clk 0:00:19]}  Rd4 {[%clk 0:02:08]} 25. c3 {[%clk 0:00:19]}  bxc3 {[%clk 0:02:08]} 26. bxc3 {[%clk 0:00:20]}  Rd3 {[%clk 0:02:08]} 27. Ne4 {[%clk 0:00:20]}  Bxe4 {[%clk 0:02:04]} 28. Rxd3 {[%clk 0:00:13]}  Bxd3 {[%clk 0:02:05]} 29. Ne3 {[%clk 0:00:13]}  c4 {[%clk 0:02:05]} 30. Qh4 {[%clk 0:00:12]}  Qc5 {[%clk 0:02:03]} 31. Qf2 {[%clk 0:00:11]}  e4 {[%clk 0:02:03]} 32. f4 {[%clk 0:00:11]}  Rb8 {[%clk 0:02:03]} 33. g4 {[%clk 0:00:12]}  h6 {[%clk 0:02:01]} 34. h4 {[%clk 0:00:12]}  Nd5 {[%clk 0:02:01]} 35. g5 {[%clk 0:00:11]}  Nxe3 {[%clk 0:02:02]} 36. Rxe3 {[%clk 0:00:12]}  Rb2 {[%clk 0:02:02]} 37. Qg3 {[%clk 0:00:11]}  Re2 {[%clk 0:02:01]} 38. gxh6 {[%clk 0:00:10]}  Qxe3+ {[%clk 0:02:02]} 39. Qxe3 {[%clk 0:00:11]}  Rxe3 {[%clk 0:02:03]} 0-1


[Site "https://www.chess.com"]

[Event "Titled Tuesday Blitz May 2 Early 2023"]
[White "Pham, Khoi"]
[Black "Mikhailovsky, Vladimir"]
[WhiteFideId "1054988"]
[BlackFideId "34105414"]
[WhiteElo "2355"]
[BlackElo "2275"]
[Result "0-1"]
[Round "03"]
[TimeControl "180+2"]
[Date "2023.05.02"]
[WhiteClock "0:00:06"]
[BlackClock "0:00:03"]

1. d4 {[%clk 0:03:00]}  d5 {[%clk 0:03:00]} 2. c4 {[%clk 0:03:00]}  e6 {[%clk 0:03:00]} 3. Nc3 {[%clk 0:03:00]}  a6 {[%clk 0:03:00]} 4. cxd5 {[%clk 0:02:58]}  exd5 {[%clk 0:03:01]} 5. Qb3 {[%clk 0:02:58]}  c5 {[%clk 0:02:51]} 6. dxc5 {[%clk 0:02:51]}  d4 {[%clk 0:02:44]} 7. Na4 {[%clk 0:02:47]}  Nd7 {[%clk 0:02:30]} 8. Nf3 {[%clk 0:02:41]}  Nxc5 {[%clk 0:02:26]} 9. Nxc5 {[%clk 0:02:38]}  Bxc5 {[%clk 0:02:27]} 10. e3 {[%clk 0:02:35]}  Be6 {[%clk 0:01:54]} 11. Qa4+ {[%clk 0:02:25]}  Bd7 {[%clk 0:01:22]} 12. Qc4 {[%clk 0:02:22]}  Rc8 {[%clk 0:01:18]} 13. exd4 {[%clk 0:02:17]}  Qe7+ {[%clk 0:01:13]} 14. Qe2 {[%clk 0:02:11]}  Bb4+ {[%clk 0:01:02]} 15. Bd2 {[%clk 0:02:09]}  Be6 {[%clk 0:01:01]} 16. Bxb4 {[%clk 0:01:59]}  Qxb4+ {[%clk 0:01:01]} 17. Qd2 {[%clk 0:02:00]}  Qd6 {[%clk 0:00:40]} 18. Be2 {[%clk 0:01:56]}  Nf6 {[%clk 0:00:40]} 19. O-O {[%clk 0:01:56]}  O-O {[%clk 0:00:41]} 20. Rac1 {[%clk 0:01:54]}  Bxa2 {[%clk 0:00:39]} 21. h3 {[%clk 0:01:44]}  Bd5 {[%clk 0:00:38]} 22. Ne5 {[%clk 0:01:43]}  h6 {[%clk 0:00:34]} 23. Qa5 {[%clk 0:01:29]}  Rfd8 {[%clk 0:00:27]} 24. Bf3 {[%clk 0:01:21]}  Bxf3 {[%clk 0:00:22]} 25. Nxf3 {[%clk 0:01:22]}  Re8 {[%clk 0:00:14]} 26. Qf5 {[%clk 0:01:15]}  Rcd8 {[%clk 0:00:12]} 27. Rc5 {[%clk 0:01:10]}  Qe6 {[%clk 0:00:12]} 28. Qc2 {[%clk 0:01:06]}  Qb6 {[%clk 0:00:11]} 29. Rc1 {[%clk 0:01:03]}  Nd5 {[%clk 0:00:11]} 30. Qf5 {[%clk 0:01:01]}  Qe6 {[%clk 0:00:05]} 31. Qe5 {[%clk 0:00:44]}  Qd7 {[%clk 0:00:04]} 32. Qg3 {[%clk 0:00:41]}  Qf5 {[%clk 0:00:04]} 33. Ne5 {[%clk 0:00:35]}  Qf6 {[%clk 0:00:02]} 34. Ng4 {[%clk 0:00:34]}  Qg5 {[%clk 0:00:02]} 35. Qf3 {[%clk 0:00:26]}  Qf4 {[%clk 0:00:02]} 36. Qb3 {[%clk 0:00:09]}  h5 {[%clk 0:00:02]} 37. Rxd5 {[%clk 0:00:08]}  Qxc1+ {[%clk 0:00:02]} 38. Kh2 {[%clk 0:00:08]}  hxg4 {[%clk 0:00:03]} 39. Rxd8 {[%clk 0:00:06]}  Rxd8 {[%clk 0:00:03]} 0-1


[Site "https://www.chess.com"]

[Event "Titled Tuesday Blitz May 2 Early 2023"]
[White "Rodriguez, Santiago"]
[Black "Srihari L R"]
[WhiteFideId "3000591"]
[BlackFideId "46617116"]
[WhiteElo "2249"]
[BlackElo "2334"]
[Result "0-1"]
[Round "03"]
[TimeControl "180+2"]
[Date "2023.05.02"]
[WhiteClock "0:00:43"]
[BlackClock "0:00:33"]

1. d4 {[%clk 0:03:00]}  c5 {[%clk 0:02:56]} 2. d5 {[%clk 0:02:59]}  g6 {[%clk 0:02:54]} 3. Nc3 {[%clk 0:02:59]}  Bg7 {[%clk 0:02:55]} 4. e4 {[%clk 0:03:00]}  d6 {[%clk 0:02:55]} 5. Nf3 {[%clk 0:03:00]}  a6 {[%clk 0:02:54]} 6. a4 {[%clk 0:02:58]}  Nf6 {[%clk 0:02:54]} 7. Be2 {[%clk 0:02:58]}  O-O {[%clk 0:02:54]} 8. O-O {[%clk 0:02:55]}  e6 {[%clk 0:02:55]} 9. dxe6 {[%clk 0:02:54]}  Bxe6 {[%clk 0:02:50]} 10. Bg5 {[%clk 0:02:50]}  Nc6 {[%clk 0:02:45]} 11. Re1 {[%clk 0:02:44]}  h6 {[%clk 0:02:45]} 12. Bh4 {[%clk 0:02:42]}  g5 {[%clk 0:02:45]} 13. Bg3 {[%clk 0:02:41]}  d5 {[%clk 0:02:45]} 14. exd5 {[%clk 0:02:38]}  Nxd5 {[%clk 0:02:46]} 15. Nxd5 {[%clk 0:02:38]}  Bxd5 {[%clk 0:02:45]} 16. c3 {[%clk 0:02:36]}  f5 {[%clk 0:02:46]} 17. h3 {[%clk 0:01:58]}  f4 {[%clk 0:02:38]} 18. Bh2 {[%clk 0:01:57]}  Bf7 {[%clk 0:02:37]} 19. Qc2 {[%clk 0:01:56]}  Qf6 {[%clk 0:02:30]} 20. Rad1 {[%clk 0:01:54]}  Rad8 {[%clk 0:02:28]} 21. Bd3 {[%clk 0:01:54]}  Kh8 {[%clk 0:02:25]} 22. Be4 {[%clk 0:01:53]}  Na5 {[%clk 0:02:22]} 23. Rxd8 {[%clk 0:01:46]}  Rxd8 {[%clk 0:02:21]} 24. b4 {[%clk 0:01:44]}  Nc6 {[%clk 0:01:48]} 25. bxc5 {[%clk 0:01:38]}  Qxc3 {[%clk 0:01:48]} 26. Qxc3 {[%clk 0:01:37]}  Bxc3 {[%clk 0:01:49]} 27. Rb1 {[%clk 0:01:37]}  Ba2 {[%clk 0:01:39]} 28. Rc1 {[%clk 0:01:33]}  Bb2 {[%clk 0:01:38]} 29. Re1 {[%clk 0:01:27]}  Ba3 {[%clk 0:01:30]} 30. g3 {[%clk 0:01:19]}  fxg3 {[%clk 0:01:28]} 31. Bxg3 {[%clk 0:01:18]}  Bxc5 {[%clk 0:01:29]} 32. Bxc6 {[%clk 0:01:14]}  bxc6 {[%clk 0:01:30]} 33. Ne5 {[%clk 0:01:14]}  Bd5 {[%clk 0:01:19]} 34. Rc1 {[%clk 0:01:13]}  Be7 {[%clk 0:00:47]} 35. Ng6+ {[%clk 0:01:08]}  Kh7 {[%clk 0:00:45]} 36. Nxe7 {[%clk 0:01:09]}  Bf3 {[%clk 0:00:45]} 37. Kh2 {[%clk 0:00:58]}  h5 {[%clk 0:00:42]} 38. Rc5 {[%clk 0:00:53]}  Rd1 {[%clk 0:00:35]} 39. Be5 {[%clk 0:00:43]}  h4 {[%clk 0:00:33]} 0-1


[Site "https://www.chess.com"]

[Event "Titled Tuesday Blitz May 2 Early 2023"]
[White "Cherniaiev, Tykhon"]
[Black "Risteski, Emil"]
[WhiteFideId "14182360"]
[BlackFideId "15005267"]
[WhiteElo "2450"]
[BlackElo "2251"]
[Result "1-0"]
[Round "03"]
[TimeControl "180+2"]
[Date "2023.05.02"]
[WhiteClock "0:00:04"]
[BlackClock "0:00:02"]

1. Nf3 {[%clk 0:03:00]}  d6 {[%clk 0:02:57]} 2. d4 {[%clk 0:02:58]}  Nf6 {[%clk 0:02:57]} 3. c4 {[%clk 0:02:55]}  Nbd7 {[%clk 0:02:56]} 4. Nc3 {[%clk 0:02:55]}  e5 {[%clk 0:02:57]} 5. g3 {[%clk 0:02:56]}  Be7 {[%clk 0:02:55]} 6. Bg2 {[%clk 0:02:56]}  O-O {[%clk 0:02:55]} 7. O-O {[%clk 0:02:56]}  c6 {[%clk 0:02:55]} 8. Qc2 {[%clk 0:02:52]}  Qc7 {[%clk 0:02:55]} 9. Rd1 {[%clk 0:02:51]}  Re8 {[%clk 0:02:55]} 10. b3 {[%clk 0:02:50]}  a6 {[%clk 0:02:52]} 11. Bb2 {[%clk 0:02:50]}  Rb8 {[%clk 0:02:49]} 12. Rac1 {[%clk 0:02:32]}  Bf8 {[%clk 0:02:48]} 13. dxe5 {[%clk 0:02:06]}  dxe5 {[%clk 0:02:47]} 14. Ne4 {[%clk 0:02:07]}  a5 {[%clk 0:02:09]} 15. Nh4 {[%clk 0:01:21]}  g6 {[%clk 0:01:54]} 16. Ng5 {[%clk 0:00:38]}  Nc5 {[%clk 0:01:28]} 17. e3 {[%clk 0:00:35]}  h6 {[%clk 0:01:07]} 18. Ngf3 {[%clk 0:00:27]}  Bg7 {[%clk 0:00:30]} 19. a3 {[%clk 0:00:24]}  e4 {[%clk 0:00:20]} 20. Nd4 {[%clk 0:00:24]}  Nd3 {[%clk 0:00:20]} 21. Bc3 {[%clk 0:00:22]}  Nxc1 {[%clk 0:00:20]} 22. Qxc1 {[%clk 0:00:20]}  Bg4 {[%clk 0:00:20]} 23. Re1 {[%clk 0:00:18]}  Rbd8 {[%clk 0:00:20]} 24. h3 {[%clk 0:00:18]}  Bc8 {[%clk 0:00:20]} 25. Qb2 {[%clk 0:00:15]}  b6 {[%clk 0:00:14]} 26. b4 {[%clk 0:00:12]}  axb4 {[%clk 0:00:15]} 27. axb4 {[%clk 0:00:13]}  Nh7 {[%clk 0:00:11]} 28. c5 {[%clk 0:00:07]}  b5 {[%clk 0:00:08]} 29. Nxb5 {[%clk 0:00:07]}  Bxc3 {[%clk 0:00:07]} 30. Nxc3 {[%clk 0:00:08]}  g5 {[%clk 0:00:06]} 31. Nxe4 {[%clk 0:00:05]}  gxh4 {[%clk 0:00:07]} 32. b5 {[%clk 0:00:02]}  cxb5 {[%clk 0:00:06]} 33. Nd6 {[%clk 0:00:02]}  Rxd6 {[%clk 0:00:03]} 34. cxd6 {[%clk 0:00:03]}  Qxd6 {[%clk 0:00:04]} 35. Qxb5 {[%clk 0:00:04]}  Bd7 {[%clk 0:00:03]} 36. Qh5 {[%clk 0:00:04]}  hxg3 {[%clk 0:00:04]} 37. fxg3 {[%clk 0:00:04]}  Qxg3 {[%clk 0:00:03]} 38. Rf1 {[%clk 0:00:05]}  Be6 {[%clk 0:00:04]} 39. Qxh6 {[%clk 0:00:05]}  Qg6 {[%clk 0:00:04]} 40. Qf4 {[%clk 0:00:05]}  Bxh3 {[%clk 0:00:03]} 41. Rf2 {[%clk 0:00:04]}  Be6 {[%clk 0:00:02]} 42. Kh2 {[%clk 0:00:04]}  Kh8 {[%clk 0:00:03]} 43. Be4 {[%clk 0:00:04]}  Qg7 {[%clk 0:00:02]} 44. Rg2 {[%clk 0:00:04]}  Qc3 {[%clk 0:00:02]} 45. Bxh7 {[%clk 0:00:04]}  Kxh7 {[%clk 0:00:02]} 46. Qh4# {[%clk 0:00:04]} 1-0


[Site "https://www.chess.com"]

[Event "Titled Tuesday Blitz May 2 Early 2023"]
[White "Postny, Evgeny"]
[Black "Arencibia Monduy, Antonio"]
[WhiteFideId "2804344"]
[BlackFideId "3507939"]
[WhiteElo "2504"]
[BlackElo "2122"]
[Result "0-1"]
[Round "03"]
[TimeControl "180+2"]
[Date "2023.05.02"]
[WhiteClock "0:00:01"]
[BlackClock "0:00:04"]

1. e4 {[%clk 0:02:55]}  e6 {[%clk 0:02:59]} 2. d4 {[%clk 0:02:54]}  d5 {[%clk 0:02:59]} 3. Nc3 {[%clk 0:02:54]}  dxe4 {[%clk 0:02:59]} 4. Nxe4 {[%clk 0:02:54]}  Nd7 {[%clk 0:03:00]} 5. Nf3 {[%clk 0:02:54]}  Ngf6 {[%clk 0:03:00]} 6. Ned2 {[%clk 0:02:54]}  Be7 {[%clk 0:03:00]} 7. Bd3 {[%clk 0:02:55]}  O-O {[%clk 0:03:00]} 8. O-O {[%clk 0:02:55]}  b6 {[%clk 0:03:01]} 9. Nc4 {[%clk 0:02:51]}  Bb7 {[%clk 0:02:57]} 10. Re1 {[%clk 0:02:50]}  c5 {[%clk 0:02:57]} 11. c3 {[%clk 0:02:40]}  cxd4 {[%clk 0:02:57]} 12. Nxd4 {[%clk 0:02:40]}  Nc5 {[%clk 0:02:52]} 13. Bc2 {[%clk 0:02:37]}  Qc7 {[%clk 0:02:29]} 14. Qe2 {[%clk 0:02:30]}  Rad8 {[%clk 0:02:21]} 15. Bg5 {[%clk 0:02:24]}  Ba6 {[%clk 0:01:39]} 16. Bh4 {[%clk 0:02:07]}  Nd5 {[%clk 0:01:10]} 17. Bg3 {[%clk 0:01:56]}  Qc8 {[%clk 0:00:55]} 18. Rad1 {[%clk 0:01:53]}  Bf6 {[%clk 0:00:55]} 19. Bb1 {[%clk 0:01:40]}  g6 {[%clk 0:00:51]} 20. h4 {[%clk 0:01:05]}  Rfe8 {[%clk 0:00:51]} 21. h5 {[%clk 0:01:03]}  e5 {[%clk 0:00:51]} 22. hxg6 {[%clk 0:00:57]}  hxg6 {[%clk 0:00:48]} 23. Nb3 {[%clk 0:00:41]}  Na4 {[%clk 0:00:32]} 24. Qf3 {[%clk 0:00:16]}  Bxc4 {[%clk 0:00:31]} 25. Rxd5 {[%clk 0:00:16]}  Bxd5 {[%clk 0:00:31]} 26. Qxf6 {[%clk 0:00:16]}  Qe6 {[%clk 0:00:29]} 27. Qh4 {[%clk 0:00:16]}  Nc5 {[%clk 0:00:12]} 28. Nxc5 {[%clk 0:00:10]}  bxc5 {[%clk 0:00:12]} 29. Rxe5 {[%clk 0:00:10]}  Qd7 {[%clk 0:00:12]} 30. Qf6 {[%clk 0:00:08]}  Qc6 {[%clk 0:00:08]} 31. Qg5 {[%clk 0:00:03]}  Bxg2 {[%clk 0:00:04]} 32. Bc2 {[%clk 0:00:02]}  Bh1 {[%clk 0:00:04]} 33. Rxe8+ {[%clk 0:00:02]}  Rxe8 {[%clk 0:00:04]} 34. Bf4 {[%clk 0:00:02]}  Re1+ {[%clk 0:00:04]} 35. Kh2 {[%clk 0:00:02]}  Be4 {[%clk 0:00:05]} 36. f3 {[%clk 0:00:01]}  Bxc2 {[%clk 0:00:05]} 37. Qd8+ {[%clk 0:00:01]}  Re8 {[%clk 0:00:04]} 0-1


[Site "https://www.chess.com"]